[Event "*** SCC Grand Prix: Titled Tuesday Blitz"]
[Site "Chess.com"]
[Date "2020.09.29"]
[Round "3"]
[White "Chesstrainer1"]
[Black "Gabrielian_Artur"]
[Result "0-1"]
[WhiteElo "2429"]
[BlackElo "2745"]
[TimeControl "180+1"]
[EndTime "10:28:06 PDT"]
[Termination "Gabrielian_Artur won on time"]

1. Nf3 {[%clk 0:03:00.9]} 1... Nf6 {[%clk 0:02:59.1]} 2. c4 {[%clk 0:03:00.5]}
2... g6 {[%clk 0:02:59.2]} 3. Nc3 {[%clk 0:02:57.5]} 3... Bg7 {[%clk 0:02:59.6]}
4. e4 {[%clk 0:02:57.5]} 4... O-O {[%clk 0:02:58.7]} 5. d4 {[%clk 0:02:58]} 5...
d6 {[%clk 0:02:59.2]} 6. h3 {[%clk 0:02:58.2]} 6... e5 {[%clk 0:02:55.9]} 7. d5
{[%clk 0:02:56.8]} 7... Na6 {[%clk 0:02:56]} 8. Be3 {[%clk 0:02:55.5]} 8... Nc5
{[%clk 0:02:55]} 9. Nd2 {[%clk 0:02:55.1]} 9... a5 {[%clk 0:02:53.2]} 10. g4
{[%clk 0:02:51.9]} 10... c6 {[%clk 0:02:52.7]} 11. Be2 {[%clk 0:02:45.7]} 11...
a4 {[%clk 0:02:50.9]} 12. a3 {[%clk 0:02:43.5]} 12... Qa5 {[%clk 0:02:42.8]} 13.
Kf1 {[%clk 0:02:43.4]} 13... cxd5 {[%clk 0:02:40.6]} 14. cxd5 {[%clk 0:02:43]}
14... Bd7 {[%clk 0:02:41.2]} 15. h4 {[%clk 0:02:38.6]} 15... b5 {[%clk
0:02:37.2]} 16. h5 {[%clk 0:02:38.4]} 16... b4 {[%clk 0:02:31.7]} 17. Nc4 {[%clk
0:01:51.3]} 17... Qc7 {[%clk 0:02:29.1]} 18. axb4 {[%clk 0:01:49]} 18... Ncxe4
{[%clk 0:02:25.2]} 19. Nxe4 {[%clk 0:01:49.9]} 19... Nxe4 {[%clk 0:02:24.9]} 20.
Rc1 {[%clk 0:01:38.5]} 20... Qb7 {[%clk 0:01:53.7]} 21. Nb6 {[%clk 0:01:25.2]}
21... Rab8 {[%clk 0:01:39.5]} 22. Kg2 {[%clk 0:01:16.5]} 22... Nf6 {[%clk
0:01:31.8]} 23. h6 {[%clk 0:00:52.3]} 23... Bh8 {[%clk 0:01:31.4]} 24. g5 {[%clk
0:00:52.7]} 24... Nh5 {[%clk 0:01:22.2]} 25. Rxh5 {[%clk 0:00:27.3]} 25... gxh5
{[%clk 0:01:21.7]} 26. Bd3 {[%clk 0:00:27.7]} 26... f5 {[%clk 0:01:15.4]} 27.
gxf6 {[%clk 0:00:27]} 27... Bxf6 {[%clk 0:01:15.1]} 28. Qxh5 {[%clk 0:00:26.4]}
28... Kh8 {[%clk 0:01:14.8]} 29. Kh2 {[%clk 0:00:18.1]} 29... e4 {[%clk
0:00:59.4]} 30. Bxe4 {[%clk 0:00:14.6]} 30... Be5+ {[%clk 0:00:59.8]} 31. Kh1
{[%clk 0:00:13.3]} 31... Be8 {[%clk 0:00:44.1]} 32. Qh3 {[%clk 0:00:12.5]} 32...
Qf7 {[%clk 0:00:41.1]} 33. f4 {[%clk 0:00:11.8]} 33... Bxb2 {[%clk 0:00:40.8]}
34. Rg1 {[%clk 0:00:11.4]} 34... Qh5 {[%clk 0:00:36.3]} 35. Qxh5 {[%clk
0:00:10.6]} 35... Bxh5 {[%clk 0:00:36.5]} 36. Nd7 {[%clk 0:00:10.3]} 36... Rfe8
{[%clk 0:00:28.5]} 37. Nxb8 {[%clk 0:00:10.3]} 37... Rxe4 {[%clk 0:00:27.7]} 38.
Bd2 {[%clk 0:00:09.2]} 38... Re8 {[%clk 0:00:20.4]} 39. Nc6 {[%clk 0:00:08.7]}
39... Bf3+ {[%clk 0:00:20.4]} 40. Kh2 {[%clk 0:00:08.6]} 40... Bxd5 {[%clk
0:00:20.9]} 41. b5 {[%clk 0:00:04.8]} 41... Re2+ {[%clk 0:00:20.4]} 42. Kh3
{[%clk 0:00:05.1]} 42... Rxd2 {[%clk 0:00:20.8]} 43. Ne7 {[%clk 0:00:04.2]}
43... Rd3+ {[%clk 0:00:20.7]} 44. Kg4 {[%clk 0:00:03.1]} 44... Bf7 {[%clk
0:00:19.4]} 0-1

[Event "*** SCC Grand Prix: Titled Tuesday Blitz"]
[Site "Chess.com"]
[Date "2020.09.29"]
[Round "3"]
[White "Supernotar"]
[Black "Reader777"]
[Result "0-1"]
[WhiteElo "2798"]
[BlackElo "2643"]
[TimeControl "180+1"]
[EndTime "10:28:07 PDT"]
[Termination "Reader777 won on time"]

1. d4 {[%clk 0:03:00.9]} 1... Nf6 {[%clk 0:02:59.8]} 2. c4 {[%clk 0:03:00.4]}
2... e6 {[%clk 0:03:00]} 3. Nf3 {[%clk 0:03:00.7]} 3... d5 {[%clk 0:02:59.5]} 4.
e3 {[%clk 0:03:00.9]} 4... c5 {[%clk 0:02:51.1]} 5. dxc5 {[%clk 0:03:00.5]} 5...
Bxc5 {[%clk 0:02:49.9]} 6. a3 {[%clk 0:03:00.7]} 6... a5 {[%clk 0:02:49.6]} 7.
Nc3 {[%clk 0:03:00.1]} 7... Nc6 {[%clk 0:02:49.3]} 8. cxd5 {[%clk 0:02:59.6]}
8... exd5 {[%clk 0:02:49]} 9. Nb5 {[%clk 0:02:59.8]} 9... O-O {[%clk 0:02:48]}
10. Be2 {[%clk 0:03:00]} 10... Re8 {[%clk 0:02:47.3]} 11. O-O {[%clk 0:03:00]}
11... Ne4 {[%clk 0:02:47.3]} 12. b3 {[%clk 0:02:56.6]} 12... Qf6 {[%clk
0:02:42.7]} 13. Rb1 {[%clk 0:02:53]} 13... Qd8 {[%clk 0:02:17.9]} 14. Bb2 {[%clk
0:02:42.5]} 14... Be6 {[%clk 0:02:17.1]} 15. Nfd4 {[%clk 0:02:39.6]} 15... Nxd4
{[%clk 0:02:15]} 16. Nxd4 {[%clk 0:02:37.1]} 16... Rc8 {[%clk 0:02:13.9]} 17.
Rc1 {[%clk 0:02:36.3]} 17... Qe7 {[%clk 0:02:07.8]} 18. Nxe6 {[%clk 0:02:26.5]}
18... fxe6 {[%clk 0:02:06.3]} 19. a4 {[%clk 0:02:22.2]} 19... Rf8 {[%clk
0:02:04.9]} 20. Bf3 {[%clk 0:02:14.9]} 20... Ng5 {[%clk 0:01:42.1]} 21. Bg4
{[%clk 0:02:10.6]} 21... Ne4 {[%clk 0:01:39.1]} 22. Qd3 {[%clk 0:01:59.7]} 22...
Nxf2 {[%clk 0:01:25.4]} 23. Rxf2 {[%clk 0:01:41]} 23... Rxf2 {[%clk 0:01:25.2]}
24. Rxc5 {[%clk 0:01:04.1]} 24... Qxc5 {[%clk 0:01:08.9]} 25. Kxf2 {[%clk
0:00:40.6]} 25... Qc2+ {[%clk 0:01:08.5]} 26. Qe2 {[%clk 0:00:36.6]} 26... Qe4
{[%clk 0:00:58.5]} 27. Bf3 {[%clk 0:00:30.3]} 27... Qb1 {[%clk 0:00:58.3]} 28.
Kg3 {[%clk 0:00:21.5]} 28... Qg6+ {[%clk 0:00:55.6]} 29. Kh3 {[%clk 0:00:17.3]}
29... Rc2 {[%clk 0:00:54.2]} 30. Qb5 {[%clk 0:00:11.9]} 30... Rxb2 {[%clk
0:00:53.8]} 31. Qxb7 {[%clk 0:00:11.3]} 31... h5 {[%clk 0:00:48.3]} 32. Qa8+
{[%clk 0:00:07.9]} 32... Kh7 {[%clk 0:00:47.6]} 33. Qxa5 {[%clk 0:00:07.2]}
33... Qf5+ {[%clk 0:00:46.3]} 34. Kg3 {[%clk 0:00:05.9]} 34... Rxb3 {[%clk
0:00:43.1]} 35. Qc5 {[%clk 0:00:04]} 35... Qe5+ {[%clk 0:00:40.9]} 36. Kh3
{[%clk 0:00:03.8]} 36... Qxe3 {[%clk 0:00:38.7]} 37. Qe7 {[%clk 0:00:02]} 37...
Qe5 {[%clk 0:00:35.2]} 38. a5 {[%clk 0:00:01.9]} 38... Qf4 {[%clk 0:00:25.7]}
39. Qxe6 {[%clk 0:00:01.6]} 39... Rd3 {[%clk 0:00:18.2]} 40. a6 {[%clk
0:00:01.5]} 40... Ra3 {[%clk 0:00:16.2]} 41. a7 {[%clk 0:00:01.4]} 41... Rxa7
{[%clk 0:00:15.7]} 42. Qxd5 {[%clk 0:00:02]} 42... g6 {[%clk 0:00:13.4]} 43. Qe4
{[%clk 0:00:01.9]} 43... Qf6 {[%clk 0:00:13]} 44. Qc4 {[%clk 0:00:01.2]} 44...
Re7 {[%clk 0:00:13.1]} 0-1

[Event "*** SCC Grand Prix: Titled Tuesday Blitz"]
[Site "Chess.com"]
[Date "2020.09.29"]
[Round "3"]
[White "elcandado"]
[Black "GMaka"]
[Result "1-0"]
[WhiteElo "2566"]
[BlackElo "2365"]
[TimeControl "180+1"]
[EndTime "10:28:07 PDT"]
[Termination "elcandado won on time"]

1. d4 {[%clk 0:03:00.9]} 1... Nf6 {[%clk 0:02:59.8]} 2. Bf4 {[%clk 0:03:00.5]}
2... d5 {[%clk 0:02:59.4]} 3. e3 {[%clk 0:03:00.4]} 3... c6 {[%clk 0:02:58.5]}
4. Nd2 {[%clk 0:02:56.3]} 4... Bg4 {[%clk 0:02:56.9]} 5. Ngf3 {[%clk 0:02:54.9]}
5... e6 {[%clk 0:02:56.5]} 6. c4 {[%clk 0:02:55.3]} 6... Bd6 {[%clk 0:02:56.8]}
7. Bg3 {[%clk 0:02:34]} 7... Bxg3 {[%clk 0:02:46.5]} 8. hxg3 {[%clk 0:02:34.9]}
8... Qa5 {[%clk 0:02:46.7]} 9. Be2 {[%clk 0:02:31.9]} 9... O-O {[%clk
0:02:40.9]} 10. Qc2 {[%clk 0:02:29.2]} 10... h6 {[%clk 0:02:40.1]} 11. a3 {[%clk
0:02:24.5]} 11... Nbd7 {[%clk 0:02:19.1]} 12. O-O {[%clk 0:02:21]} 12... Bf5
{[%clk 0:02:12.4]} 13. Bd3 {[%clk 0:02:16.3]} 13... Bxd3 {[%clk 0:02:06.8]} 14.
Qxd3 {[%clk 0:02:17.2]} 14... Qa6 {[%clk 0:01:57]} 15. Qc2 {[%clk 0:02:07.9]}
15... b5 {[%clk 0:01:40.1]} 16. c5 {[%clk 0:01:52.1]} 16... Qb7 {[%clk
0:01:34.4]} 17. a4 {[%clk 0:01:47.9]} 17... a5 {[%clk 0:01:13.7]} 18. axb5
{[%clk 0:01:38.7]} 18... Qxb5 {[%clk 0:01:14.6]} 19. b3 {[%clk 0:01:37.8]} 19...
Nb8 {[%clk 0:01:02.6]} 20. Qc3 {[%clk 0:01:31]} 20... Nbd7 {[%clk 0:00:46.2]}
21. Ra4 {[%clk 0:01:29.2]} 21... Ra6 {[%clk 0:00:46.4]} 22. Rfa1 {[%clk
0:01:27.8]} 22... Rfa8 {[%clk 0:00:46.9]} 23. R1a2 {[%clk 0:01:18.4]} 23... Ne8
{[%clk 0:00:45.3]} 24. Qa1 {[%clk 0:01:13.8]} 24... Nef6 {[%clk 0:00:43]} 25. b4
{[%clk 0:01:09.4]} 25... Ng4 {[%clk 0:00:42.2]} 26. Qf1 {[%clk 0:01:03.5]} 26...
Qxf1+ {[%clk 0:00:28.6]} 27. Kxf1 {[%clk 0:01:01.9]} 27... e5 {[%clk 0:00:27.8]}
28. Rxa5 {[%clk 0:00:59.4]} 28... Rxa5 {[%clk 0:00:27.3]} 29. Rxa5 {[%clk
0:00:58.4]} 29... Rb8 {[%clk 0:00:27.8]} 30. Ra4 {[%clk 0:00:52.3]} 30... e4
{[%clk 0:00:21.2]} 31. Ne1 {[%clk 0:00:48]} 31... Rb7 {[%clk 0:00:20.5]} 32. Nc2
{[%clk 0:00:48]} 32... Nb8 {[%clk 0:00:20.1]} 33. Ra8 {[%clk 0:00:44.8]} 33...
Kh7 {[%clk 0:00:19.9]} 34. Nb3 {[%clk 0:00:45.2]} 34... Nd7 {[%clk 0:00:17.4]}
35. Na5 {[%clk 0:00:42]} 35... Rc7 {[%clk 0:00:17.5]} 36. Ra6 {[%clk 0:00:38.3]}
36... Nb8 {[%clk 0:00:13.5]} 37. Rb6 {[%clk 0:00:37]} 37... Rc8 {[%clk
0:00:13.9]} 38. Na3 {[%clk 0:00:29.1]} 38... Nf6 {[%clk 0:00:14.1]} 39. Rb7
{[%clk 0:00:25.6]} 39... Nfd7 {[%clk 0:00:04.4]} 40. b5 {[%clk 0:00:24.3]} 40...
cxb5 {[%clk 0:00:03.4]} 41. Nxb5 {[%clk 0:00:24.9]} 41... Kg6 {[%clk 0:00:02.5]}
42. Ke2 {[%clk 0:00:22.1]} 42... Nf6 {[%clk 0:00:01]} 43. Nd6 {[%clk 0:00:19.2]}
43... Rf8 {[%clk 0:00:01.1]} 44. Nxf7 {[%clk 0:00:19]} 44... Rxf7 {[%clk
0:00:01.7]} 45. Rxb8 {[%clk 0:00:18.9]} 45... Ra7 {[%clk 0:00:02.6]} 46. Rb5
{[%clk 0:00:18]} 46... Ng4 {[%clk 0:00:02]} 47. c6 {[%clk 0:00:17.5]} 1-0

[Event "*** SCC Grand Prix: Titled Tuesday Blitz"]
[Site "Chess.com"]
[Date "2020.09.29"]
[Round "3"]
[White "davidkalashian"]
[Black "Forantes"]
[Result "1-0"]
[WhiteElo "2579"]
[BlackElo "2374"]
[TimeControl "180+1"]
[EndTime "10:28:08 PDT"]
[Termination "davidkalashian won by resignation"]

1. d4 {[%clk 0:03:00.8]} 1... Nf6 {[%clk 0:02:59.5]} 2. c4 {[%clk 0:02:56.2]}
2... g6 {[%clk 0:02:59.1]} 3. Nc3 {[%clk 0:02:55.4]} 3... d5 {[%clk 0:02:59.4]}
4. Bf4 {[%clk 0:02:54.8]} 4... Bg7 {[%clk 0:02:59]} 5. e3 {[%clk 0:02:55.3]}
5... O-O {[%clk 0:02:58.6]} 6. Rc1 {[%clk 0:02:55.9]} 6... c5 {[%clk 0:02:57]}
7. dxc5 {[%clk 0:02:55.5]} 7... Qa5 {[%clk 0:02:40.2]} 8. cxd5 {[%clk
0:02:52.9]} 8... Rd8 {[%clk 0:02:25.9]} 9. Bc4 {[%clk 0:02:47.7]} 9... Ne4
{[%clk 0:02:15.4]} 10. Ne2 {[%clk 0:02:44.2]} 10... Nxc5 {[%clk 0:01:46.5]} 11.
O-O {[%clk 0:02:42]} 11... Nbd7 {[%clk 0:00:47]} 12. a3 {[%clk 0:02:40.1]} 12...
Qb6 {[%clk 0:00:43.7]} 13. b4 {[%clk 0:02:29.8]} 13... Na6 {[%clk 0:00:42.8]}
14. Na4 {[%clk 0:02:29.8]} 14... Qf6 {[%clk 0:00:42.8]} 15. Nd4 {[%clk
0:02:25.1]} 15... Nb6 {[%clk 0:00:36.5]} 16. Nxb6 {[%clk 0:02:13.6]} 16... axb6
{[%clk 0:00:36.7]} 17. Qb3 {[%clk 0:02:11.9]} 17... h5 {[%clk 0:00:32.3]} 18. h3
{[%clk 0:02:07.7]} 18... g5 {[%clk 0:00:27.9]} 19. Bh2 {[%clk 0:02:04.1]} 19...
h4 {[%clk 0:00:28]} 20. Be2 {[%clk 0:01:38]} 20... g4 {[%clk 0:00:23.6]} 21.
Bxg4 {[%clk 0:01:29.9]} 21... Bxg4 {[%clk 0:00:23.3]} 22. hxg4 {[%clk
0:01:30.8]} 22... Qg5 {[%clk 0:00:24.2]} 23. Nf5 {[%clk 0:01:15.3]} 23... Qxg4
{[%clk 0:00:22]} 24. Nxg7 {[%clk 0:01:07.3]} 24... Kxg7 {[%clk 0:00:22.1]} 25.
Qc3+ {[%clk 0:00:55]} 25... f6 {[%clk 0:00:21.7]} 26. Qd3 {[%clk 0:00:51.1]}
26... h3 {[%clk 0:00:21.2]} 27. Bg3 {[%clk 0:00:43.3]} 27... Rh8 {[%clk
0:00:20.4]} 28. Rc4 {[%clk 0:00:39.7]} 28... Qg5 {[%clk 0:00:11.4]} 29. Qe4
{[%clk 0:00:27.2]} 29... b5 {[%clk 0:00:04.5]} 30. Qxe7+ {[%clk 0:00:21.9]}
30... Kg6 {[%clk 0:00:04.1]} 31. Qe4+ {[%clk 0:00:15.8]} 31... f5 {[%clk
0:00:04.2]} 32. Qe6+ {[%clk 0:00:14.9]} 32... Kg7 {[%clk 0:00:04.6]} 33. Rf4
{[%clk 0:00:12.2]} 33... hxg2 {[%clk 0:00:03.6]} 34. Kxg2 {[%clk 0:00:11.7]}
34... Qh5 {[%clk 0:00:04.2]} 35. Rh4 {[%clk 0:00:10.4]} 35... Qg5 {[%clk
0:00:03]} 36. Rfh1 {[%clk 0:00:10.2]} 36... Rxh4 {[%clk 0:00:02.9]} 37. Rxh4
{[%clk 0:00:11.1]} 37... Rh8 {[%clk 0:00:03.3]} 38. Qe5+ {[%clk 0:00:09.1]}
38... Kg6 {[%clk 0:00:02.3]} 39. Qxh8 {[%clk 0:00:08.5]} 39... Kf7 {[%clk
0:00:02.3]} 40. Qh5+ {[%clk 0:00:07.8]} 40... Qxh5 {[%clk 0:00:02.2]} 41. Rxh5
{[%clk 0:00:08.7]} 1-0

[Event "*** SCC Grand Prix: Titled Tuesday Blitz"]
[Site "Chess.com"]
[Date "2020.09.29"]
[Round "3"]
[White "Mazetovic"]
[Black "MF1966Idrisov"]
[Result "1-0"]
[WhiteElo "2552"]
[BlackElo "2361"]
[TimeControl "180+1"]
[EndTime "10:28:09 PDT"]
[Termination "Mazetovic won on time"]

1. e4 {[%clk 0:03:00.9]} 1... c5 {[%clk 0:02:58.5]} 2. Nf3 {[%clk 0:03:00.4]}
2... d6 {[%clk 0:02:58.5]} 3. Bb5+ {[%clk 0:02:59.4]} 3... Bd7 {[%clk
0:02:57.9]} 4. Bxd7+ {[%clk 0:02:59.1]} 4... Qxd7 {[%clk 0:02:57.9]} 5. O-O
{[%clk 0:02:59.4]} 5... Nc6 {[%clk 0:02:57.5]} 6. c3 {[%clk 0:02:59.2]} 6... Nf6
{[%clk 0:02:51]} 7. Re1 {[%clk 0:02:58.9]} 7... e5 {[%clk 0:02:50.2]} 8. d4
{[%clk 0:02:56.5]} 8... cxd4 {[%clk 0:02:49.9]} 9. cxd4 {[%clk 0:02:56.6]} 9...
Be7 {[%clk 0:02:49]} 10. Nc3 {[%clk 0:02:56]} 10... Rd8 {[%clk 0:02:44.6]} 11.
Bg5 {[%clk 0:02:54.8]} 11... O-O {[%clk 0:02:40.8]} 12. Bxf6 {[%clk 0:02:47.4]}
12... Bxf6 {[%clk 0:02:38.6]} 13. Nd5 {[%clk 0:02:47.7]} 13... Be7 {[%clk
0:02:29.9]} 14. Qd3 {[%clk 0:02:27.7]} 14... Rfe8 {[%clk 0:02:23.5]} 15. Rad1
{[%clk 0:02:26.8]} 15... Bf8 {[%clk 0:02:22]} 16. dxe5 {[%clk 0:02:21.9]} 16...
Nxe5 {[%clk 0:02:17.1]} 17. Nxe5 {[%clk 0:02:21.7]} 17... Rxe5 {[%clk
0:02:16.3]} 18. Rc1 {[%clk 0:02:14.6]} 18... Rde8 {[%clk 0:02:12.8]} 19. f3
{[%clk 0:01:28.5]} 19... f5 {[%clk 0:02:04.7]} 20. Rc4 {[%clk 0:01:18.2]} 20...
Qb5 {[%clk 0:01:40.9]} 21. Re2 {[%clk 0:00:49.1]} 21... fxe4 {[%clk 0:01:27.2]}
22. fxe4 {[%clk 0:00:46.6]} 22... h6 {[%clk 0:01:18.6]} 23. a4 {[%clk
0:00:41.5]} 23... Qa6 {[%clk 0:01:13.8]} 24. g3 {[%clk 0:00:36.8]} 24... b5
{[%clk 0:00:54.1]} 25. axb5 {[%clk 0:00:34.5]} 25... Qxb5 {[%clk 0:00:50.3]} 26.
Kg2 {[%clk 0:00:34.6]} 26... Rb8 {[%clk 0:00:46.4]} 27. b4 {[%clk 0:00:29.2]}
27... a5 {[%clk 0:00:45.6]} 28. bxa5 {[%clk 0:00:26.3]} 28... Qxa5 {[%clk
0:00:44]} 29. Rc7 {[%clk 0:00:22.7]} 29... Qa1 {[%clk 0:00:33.7]} 30. Qc4 {[%clk
0:00:22]} 30... Kh8 {[%clk 0:00:31.5]} 31. Nf4 {[%clk 0:00:14.9]} 31... Kh7
{[%clk 0:00:26.2]} 32. Qf7 {[%clk 0:00:12.9]} 32... Rg5 {[%clk 0:00:20.5]} 33.
h4 {[%clk 0:00:12.1]} 33... Rc5 {[%clk 0:00:19.4]} 34. Qg6+ {[%clk 0:00:11.4]}
34... Kh8 {[%clk 0:00:17.3]} 35. Ne6 {[%clk 0:00:08.8]} 35... Rc1 {[%clk
0:00:16.4]} 36. Rf7 {[%clk 0:00:06.4]} 36... Rg1+ {[%clk 0:00:15]} 37. Kh3
{[%clk 0:00:06.4]} 37... Rf1 {[%clk 0:00:11]} 38. Ref2 {[%clk 0:00:05.5]} 38...
Rxf2 {[%clk 0:00:10.8]} 39. Rxf2 {[%clk 0:00:06.4]} 39... Qe5 {[%clk 0:00:08.3]}
40. Rxf8+ {[%clk 0:00:05.3]} 40... Rxf8 {[%clk 0:00:07.1]} 41. Nxf8 {[%clk
0:00:06]} 41... Qa1 {[%clk 0:00:05.5]} 42. Ne6 {[%clk 0:00:05]} 42... Qh1+
{[%clk 0:00:04.5]} 43. Kg4 {[%clk 0:00:05.2]} 43... Qd1+ {[%clk 0:00:04.1]} 44.
Kf5 {[%clk 0:00:04.7]} 1-0

[Event "*** SCC Grand Prix: Titled Tuesday Blitz"]
[Site "Chess.com"]
[Date "2020.09.29"]
[Round "3"]
[White "Evgeny81"]
[Black "exoticprincess"]
[Result "0-1"]
[WhiteElo "2665"]
[BlackElo "2902"]
[TimeControl "180+1"]
[EndTime "10:28:12 PDT"]
[Termination "exoticprincess won on time"]

1. Nf3 {[%clk 0:03:00.9]} 1... c6 {[%clk 0:02:59.9]} 2. c4 {[%clk 0:03:00.9]}
2... d5 {[%clk 0:03:00.4]} 3. e3 {[%clk 0:03:00.6]} 3... Nf6 {[%clk 0:03:00.5]}
4. Nc3 {[%clk 0:03:00.8]} 4... g6 {[%clk 0:03:00.2]} 5. d4 {[%clk 0:02:59.5]}
5... Bg7 {[%clk 0:03:00.7]} 6. Be2 {[%clk 0:02:59.7]} 6... O-O {[%clk
0:03:00.8]} 7. O-O {[%clk 0:02:59.9]} 7... Na6 {[%clk 0:03:01]} 8. b3 {[%clk
0:02:55.2]} 8... Nc7 {[%clk 0:03:00.8]} 9. a4 {[%clk 0:02:53.6]} 9... a5 {[%clk
0:02:58.6]} 10. Ba3 {[%clk 0:02:53.4]} 10... Re8 {[%clk 0:02:57.5]} 11. Rc1
{[%clk 0:02:50.9]} 11... Bg4 {[%clk 0:02:52.9]} 12. h3 {[%clk 0:02:48.2]} 12...
Bxf3 {[%clk 0:02:52.6]} 13. Bxf3 {[%clk 0:02:49.1]} 13... e6 {[%clk 0:02:52.8]}
14. g3 {[%clk 0:02:44]} 14... Na6 {[%clk 0:02:52.4]} 15. Bg2 {[%clk 0:02:43.8]}
15... Bf8 {[%clk 0:02:50.4]} 16. Bxf8 {[%clk 0:02:42.7]} 16... Rxf8 {[%clk
0:02:49.4]} 17. e4 {[%clk 0:02:38.6]} 17... dxe4 {[%clk 0:02:49.1]} 18. Bxe4
{[%clk 0:02:38.6]} 18... Nb4 {[%clk 0:02:47.2]} 19. Qd2 {[%clk 0:02:33]} 19...
Qe7 {[%clk 0:02:43.7]} 20. Qe3 {[%clk 0:02:30]} 20... Rfd8 {[%clk 0:02:40.2]}
21. Bg2 {[%clk 0:02:29.8]} 21... Rd7 {[%clk 0:02:35.4]} 22. Rfd1 {[%clk
0:02:24.3]} 22... Rad8 {[%clk 0:02:35.1]} 23. Bf3 {[%clk 0:02:15.8]} 23... h5
{[%clk 0:02:33.5]} 24. h4 {[%clk 0:02:14]} 24... Kg7 {[%clk 0:02:32.9]} 25. Qe5
{[%clk 0:02:09.4]} 25... c5 {[%clk 0:02:20.2]} 26. Qxc5 {[%clk 0:01:52.5]} 26...
Qxc5 {[%clk 0:02:16.8]} 27. dxc5 {[%clk 0:01:53.4]} 27... Rxd1+ {[%clk
0:01:58.7]} 28. Rxd1 {[%clk 0:01:54.3]} 28... Rxd1+ {[%clk 0:01:58.1]} 29. Nxd1
{[%clk 0:01:49.6]} 29... Nd7 {[%clk 0:01:58.2]} 30. Bxb7 {[%clk 0:01:36.6]}
30... Nxc5 {[%clk 0:01:58]} 31. Bf3 {[%clk 0:01:33.5]} 31... Nxb3 {[%clk
0:01:58.3]} 32. Nc3 {[%clk 0:01:19.3]} 32... Kf6 {[%clk 0:01:57.4]} 33. Be2
{[%clk 0:01:05]} 33... Ke5 {[%clk 0:01:55.8]} 34. Nb5 {[%clk 0:00:48.6]} 34...
Nc5 {[%clk 0:01:49.4]} 35. f4+ {[%clk 0:00:48.4]} 35... Kf6 {[%clk 0:01:47.5]}
36. Nc3 {[%clk 0:00:48.1]} 36... Ke7 {[%clk 0:01:13.9]} 37. Kf2 {[%clk
0:00:46.3]} 37... Kd6 {[%clk 0:01:08.1]} 38. Ke3 {[%clk 0:00:43.9]} 38... Nc2+
{[%clk 0:01:03.8]} 39. Kd2 {[%clk 0:00:42.8]} 39... Nd4 {[%clk 0:01:04.7]} 40.
Ke3 {[%clk 0:00:43]} 40... Nf5+ {[%clk 0:01:03.7]} 41. Kf2 {[%clk 0:00:43]}
41... Nd4 {[%clk 0:00:51.5]} 42. Ke3 {[%clk 0:00:42.4]} 42... e5 {[%clk
0:00:51.9]} 43. Bf1 {[%clk 0:00:23.2]} 43... Nf5+ {[%clk 0:00:49.7]} 44. Kf2
{[%clk 0:00:21.1]} 44... e4 {[%clk 0:00:49.4]} 45. Bg2 {[%clk 0:00:13]} 45...
Nd3+ {[%clk 0:00:48.6]} 46. Kg1 {[%clk 0:00:12.9]} 46... Nxg3 {[%clk 0:00:46.7]}
47. Bxe4 {[%clk 0:00:11.4]} 47... Nxf4 {[%clk 0:00:46.5]} 48. Kh2 {[%clk
0:00:09.6]} 48... Nge2 {[%clk 0:00:37.7]} 49. Nb5+ {[%clk 0:00:06.9]} 49... Kc5
{[%clk 0:00:38]} 50. Bf3 {[%clk 0:00:05.8]} 50... f5 {[%clk 0:00:34.4]} 51. Na7
{[%clk 0:00:01.8]} 51... Nd4 {[%clk 0:00:32.7]} 52. Nb5 {[%clk 0:00:02.1]} 52...
Nxf3+ {[%clk 0:00:31.1]} 53. Kg3 {[%clk 0:00:02.5]} 53... Nxh4 {[%clk
0:00:30.2]} 54. Kxf4 {[%clk 0:00:02.6]} 54... Kxc4 {[%clk 0:00:29]} 0-1